fUSD/lending_fUSD_20250123
["ID","MTS","AMOUNT","RATE_DAILY","PERIOD"]
[350147233,1737652247863,-7431.75326066,0.00016985,2]
[350147236,1737652247873,-2079.42914716,0.00016985,2]
[350147242,1737652247966,-6364.19768787,0.00016985,2]
[350147243,1737652247979,-6606.08161433,0.00016985,2]
[350147262,1737652248175,-1579.1369838,0.00016985,2]
[350147264,1737652248191,-9477.99522,0.00016985,2]
[350147267,1737652248203,-681.00931634,0.00016985,2]
[350147272,1737652248242,-3284.0,0.00016985,2]
[350147274,1737652248253,-285.0772836,0.00016985,2]
[350147276,1737652248264,-369.07149998,0.00016985,2]
[350147278,1737652248277,-2618.2903649,0.00016985,2]
[350147282,1737652248299,-500.0,0.00016438,2]
[350147284,1737652248308,-1600.0,0.00016985,2]
[350147308,1737652248541,-500.0,0.00016438,2]
[350147310,1737652248550,-343.77945892,0.00016712,2]
[350147312,1737652248560,-6555.12054108,0.00016985,2]
[350147315,1737652248571,-1048.2,0.00016985,2]
[350147317,1737652248582,-1053.0,0.00016985,2]
[350147319,1737652248592,-944.74988501,0.00016985,2]
[350147321,1737652248604,-514.97010049,0.00016985,2]
[350147360,1737652248966,-323.97665999,0.00016438,2]
[350147362,1737652248979,-53.8521749,0.00016438,2]
[350147364,1737652248988,-10469.66988757,0.00016985,2]
[350147367,1737652249003,-10509.28658042,0.00016985,2]
[350147369,1737652249018,-533.355,0.00016985,2]
[350147371,1737652249029,-4681.1210334,0.00016985,2]
[350147374,1737652249046,-6806.8501,0.00016238,2]
[350147376,1737652249056,-149568.01892702,0.00016985,2]
[350147379,1737652249067,-821.29998,0.00016985,2]
[350147677,1737652252139,225.02,0.00016753,30]
[350147698,1737652252343,225.02,0.00019337,30]
[350147723,1737652252574,225.02,0.00021921,30]
[350148018,1737652298960,296.01,0.000219,31]
[350148019,1737652299019,296.01,0.000219,31]
[350148020,1737652299082,296.01,0.000219,31]
[350148021,1737652299141,296.01,0.000219,31]
[350148022,1737652299201,296.01,0.000219,31]
[350148023,1737652299270,296.01,0.000219,31]
[350148024,1737652299323,296.01,0.000219,31]
[350148025,1737652299390,296.01,0.000219,31]
[350148026,1737652299445,296.01,0.000219,31]
[350148027,1737652299511,296.01,0.000219,31]
[350148028,1737652299557,296.01,0.000219,31]
[350148029,1737652299616,296.01,0.000219,31]
[350148030,1737652299685,296.01,0.000219,31]
[350148031,1737652299746,296.01,0.000219,31]
[350148032,1737652299809,296.01,0.000219,31]
[350148033,1737652299886,296.01,0.000219,31]
[350148034,1737652305048,-13000.7748,0.00016338,2]
[350148035,1737652305071,-5000.0,0.00016338,2]
[350148036,1737652305092,-5899.9856,0.00016338,2]
[350148037,1737652305114,-237.0,0.00016437,2]
[350148038,1737652305136,-500.0,0.00016438,2]
[350148039,1737652305161,-947.84,0.00016438,2]
[350148040,1737652305184,-500.0,0.00016438,2]
[350148041,1737652305205,-500.0,0.00016438,2]
[350148042,1737652305233,-526.83,0.00016438,2]
[350148043,1737652305256,-579.61,0.00016438,2]
[350148044,1737652305276,-500.0,0.00016438,2]
[350148045,1737652305299,-500.0,0.00016438,2]
[350148046,1737652305320,-500.0,0.00016438,2]
[350148047,1737652305343,-804.78,0.00016438,2]
[350148048,1737652305365,-500.0,0.00016438,2]
[350148049,1737652305386,-500.0,0.00016438,2]
[350148050,1737652305408,-589.65,0.00016438,2]
[350148051,1737652305429,-1040.22,0.00016438,2]
[350148052,1737652305451,-500.0,0.00016438,2]
[350148053,1737652305473,-500.0,0.00016438,2]
[350148054,1737652305498,-628.98434133,0.00016438,2]
[350148055,1737652305519,-326.79956851,0.00016438,2]
[350148056,1737652305542,-500.0,0.00016438,2]
[350148057,1737652305565,-2117.45,0.00016438,2]
[350148058,1737652305589,-500.0,0.00016438,2]
[350148059,1737652305624,-500.0,0.00016438,2]
[350148060,1737652305658,-500.0,0.00016438,2]
[350148061,1737652305693,-1423.7,0.00016438,2]
[350148062,1737652305725,-500.0,0.00016438,2]
[350148063,1737652305759,-1933.07,0.00016438,2]
[350148064,1737652305792,-958.66,0.00016438,2]
[350148065,1737652305825,-458.62740487,0.00016438,2]
[350148066,1737652305856,-500.0,0.00016438,2]
[350148067,1737652305889,-500.0,0.00016438,2]
[350148068,1737652305919,-500.0,0.00016438,2]
[350148069,1737652305951,-776.69,0.00016438,2]
[350148070,1737652305980,-500.0,0.00016438,2]
[350148071,1737652306011,-500.0,0.00016438,2]
[350148072,1737652306040,-500.0,0.00016438,2]
[350148073,1737652306069,-1758.4,0.00016438,2]
[350148074,1737652306098,-716.03,0.00016438,2]
[350148075,1737652306126,-500.0,0.00016438,2]
[350148076,1737652306155,-500.0,0.00016438,2]
[350148077,1737652306185,-460.89828529,0.00016438,2]
[350148078,1737652499753,1246.55267274,0.00014665,10]
[350148080,1737652911138,248.68,0.000219,31]
[350148081,1737652911195,248.68,0.000219,31]
[350148082,1737652911248,248.68,0.000219,31]
[350148083,1737652911316,248.68,0.000219,31]
[350148084,1737652911379,248.68,0.000219,31]
[350148085,1737652911442,248.68,0.000219,31]
[350148086,1737652911503,248.68,0.000219,31]
[350148087,1737652911559,248.68,0.000219,31]
[350148088,1737652911628,248.68,0.000219,31]
[350148089,1737652911694,248.68,0.000219,31]
[350148090,1737652911753,248.68,0.000219,31]
[350148091,1737652911802,248.68,0.000219,31]
[350148092,1737652911867,248.68,0.000219,31]
[350148093,1737652911926,248.68,0.000219,31]
[350148094,1737652911985,248.68,0.000219,31]
[350148095,1737652912053,248.68,0.000219,31]
[350148096,1737653137172,32724.83228394,8e-05,2]
[350148100,1737653155726,24902.05061806,6.94e-05,2]
[350148101,1737653167397,9013.75938798,8e-05,2]
[350148102,1737653230660,191.26,0.00016658,30]
[350148103,1737653230864,191.26,0.00019242,30]
[350148104,1737653231123,191.26,0.00021826,30]
[350148105,1737653240487,-7068.0490605,9e-05,2]
[350148106,1737653240513,-13088.65407136,0.0001,2]
[350148107,1737653240540,-602.71696871,0.00010037,2]
[350148108,1737653240567,-152.8,0.00010137,2]
[350148109,1737653240594,-5586.20395626,0.00011,2]
[350148110,1737653247027,17201.0,0.00010217,2]
[350148113,1737653278460,672.12234361,0.0001,2]
[350148114,1737653279352,16387.37407378,0.0001,2]
[350148116,1737653282220,939241.07952578,0.0001,2]
[350148117,1737653318904,-1000000.0,0.0001,2]
[350148118,1737653322175,2169.85989712,0.0001421,7]
[350148134,1737653393547,-476.0197845,9.999e-05,2]
[350148135,1737653393573,-499523.9802155,0.0001,2]
[350148140,1737653431630,-150.0,9.999e-05,2]
[350148141,1737653431640,-7224.6194,0.0001,2]
[350148143,1737653432094,-0.28849745,0.0001,2]
[350148144,1737653432110,-5269.5,0.0001,2]
[350148146,1737653434071,-105554.18611995,0.0001,2]
[350148151,1737653434331,-214347.28839892,0.0001,2]
[350148154,1737653434351,-1251.06344126,0.0001,2]
[350148201,1737653437610,-21516.6426393,0.0001,2]
[350148202,1737653437668,-707240.19712354,0.0001,2]
[350148203,1737653437678,-255.0,0.00010999,2]
[350148204,1737653437688,-4533.69504176,0.00011099,2]
[350148205,1737653437698,-4533.69504171,0.00011777,2]
[350148206,1737653437708,-1714.44884841,0.00011899,2]
[350148207,1737653437718,-169.5757108,0.00011899,2]
[350148208,1737653437727,-224.97445946,0.00012,2]
[350148209,1737653437736,-334427.87807032,0.00012,2]
[350148210,1737653437748,-422.70253722,0.00012,2]
[350148211,1737653437761,-10581.46884468,0.00012,2]
[350148212,1737653437772,-31632.648,0.00012,2]
[350148213,1737653437892,-788.70202771,0.00012,2]
[350148262,1737653438651,-6906.51754933,0.00012,2]
[350148264,1737653438662,-734.09,0.00012,2]
[350148382,1737653439668,-640.82711405,0.00012,2]
[350148389,1737653439729,-338.42099327,0.00012,2]
[350148391,1737653439741,-4279.3756,0.00012,2]
[350148397,1737653439787,-4977.4352257,0.00012,2]
[350148410,1737653439900,-16262.96100005,0.00012,2]
[350148696,1737653442667,-1368.3577697,0.00012,2]
[350148703,1737653442724,-16607.89234978,0.00012,2]
[350148705,1737653442736,-653.550005,0.00012,2]
[350148717,1737653442839,-851.04999999,0.00012,2]
[350148720,1737653442851,-977.26619612,0.00012,2]
[350148731,1737653442952,-10470.0,0.00012,2]
[350148743,1737653443065,-613.63290045,0.00012,2]
[350148757,1737653445644,-58011.03989207,0.00012,2]
[350148758,1737653445656,-1246.059991,0.00012,2]
[350148759,1737653445707,-1559.84998,0.00012,2]
[350148760,1737653508846,500.0,9.999e-05,2]
[350148761,1737653509112,500.0,0.00010136,2]
[350148762,1737653509374,500.0,0.00010273,2]
[350148763,1737653509627,243.45,0.0001041,2]
[350148764,1737653523722,208.91,0.000219,31]
[350148765,1737653523786,208.91,0.000219,31]
[350148766,1737653523842,208.91,0.000219,31]
[350148767,1737653523902,208.91,0.000219,31]
[350148768,1737653523960,208.91,0.000219,31]
[350148769,1737653524032,208.91,0.000219,31]
[350148770,1737653524066,208.91,0.000219,31]
[350148771,1737653524104,208.91,0.000219,31]
[350148772,1737653524167,208.91,0.000219,31]
[350148773,1737653524232,208.91,0.000219,31]
[350148774,1737653524275,208.91,0.000219,31]
[350148775,1737653524332,208.91,0.000219,31]
[350148776,1737653524396,208.91,0.000219,31]
[350148777,1737653524452,208.91,0.000219,31]
[350148778,1737653524515,208.91,0.000219,31]
[350148779,1737653524581,208.91,0.000219,31]
[350148780,1737653548743,4814.0,0.00010321,2]
[350148781,1737653599986,-615.15726446,0.00011999,2]
[350148782,1737653600012,-300.0,0.00011999,2]
[350148783,1737653600305,-150.0,0.00011999,2]
[350148784,1737653600334,-492377.39273554,0.00012,2]
[350148785,1737653807030,12058.6016348,0.00014781,7]
[350148787,1737654072061,-306.55,0.00010137,2]
[350148788,1737654072085,-300.0,0.0001164,2]
[350148789,1737654072107,-23139.757967,0.00011641,2]
[350148790,1737654072130,-1253.692033,0.0001176,2]
[350148791,1737654105307,162.57,0.00016658,30]
[350148792,1737654105739,162.57,0.00019242,30]
[350148793,1737654105957,162.57,0.00021826,30]
[350148795,1737654135669,175.5,0.000219,31]
[350148796,1737654135720,175.5,0.000219,31]
[350148797,1737654135787,175.5,0.000219,31]
[350148798,1737654135858,175.5,0.000219,31]
[350148799,1737654135902,175.5,0.000219,31]
[350148800,1737654135976,175.5,0.000219,31]
[350148801,1737654136029,175.5,0.000219,31]
[350148802,1737654136114,175.5,0.000219,31]
[350148803,1737654136145,175.5,0.000219,31]
[350148804,1737654136208,175.5,0.000219,31]
[350148805,1737654136262,175.5,0.000219,31]
[350148806,1737654136338,175.5,0.000219,31]
[350148807,1737654136389,175.5,0.000219,31]
[350148808,1737654136452,175.5,0.000219,31]
[350148809,1737654136509,175.5,0.000219,31]
[350148810,1737654136573,175.5,0.000219,31]
[350148811,1737654207866,-430.64066539,0.00011724,2]
[350148812,1737654207889,-150.0,0.00011759,2]
[350148813,1737654207911,-1112.044967,0.0001176,2]
[350148814,1737654207933,-166.254,0.0001176,2]
[350148815,1737654207955,-4491.49734661,0.000119,2]
[350148816,1737654207976,-397.51155835,0.000119,2]
[350148817,1737654207997,-709.93533869,0.000119,2]
[350148818,1737654208018,-49644.82039511,0.000119,2]
[350148819,1737654208041,-500.0,0.00011973,2]
[350148820,1737654208063,-1085313.06726522,0.00012,2]
[350148821,1737654208084,-22084.22846363,0.00012,2]
[350148894,1737654631867,-500.0,0.00011973,2]
[350148895,1737654631876,-995.8465996,0.00011999,2]
[350148896,1737654631887,-150.0,0.00011999,2]
[350148897,1737654631901,-240.0,0.00011999,2]
[350148898,1737654631912,-57696.38114935,0.00012,2]
[350148899,1737654631922,-7073.72949347,0.00012,2]
[350148900,1737654631933,-1153.42657498,0.00012,2]
[350148901,1737654631945,-1106.38724,0.00012,2]
[350149053,1737654637891,-2056.91599994,0.00012,2]
[350149054,1737654637908,-866.94051637,0.00012,2]
[350149055,1737654637918,-3000.0,0.00012,2]
[350149056,1737654637928,-1919.21076,0.00012,2]
[350149057,1737654637938,-939.07,0.00012021,2]
[350149058,1737654637950,-402.63310749,0.00012095,2]
[350149059,1737654637961,-161.27208987,0.00012356,2]
[350149060,1737654637971,-255.0,0.00013079,2]
[350149061,1737654637980,-500.0,0.00013123,2]
[350149062,1737654637989,-397.51155829,0.0001315,2]
[350149063,1737654637999,-500.0,0.00013178,2]
[350149064,1737654638008,-500.0,0.00013178,2]
[350149065,1737654638018,-250.0,0.00013851,2]
[350149066,1737654638027,-180.31,0.00013929,2]
[350149067,1737654638036,-760.88,0.00013966,2]
[350149068,1737654638045,-184.36,0.00013983,2]
[350149069,1737654638054,-247.83,0.00013983,2]
[350149070,1737654638064,-2458.94043478,0.00014,2]
[350149071,1737654638073,-2458.94043467,0.00014,2]
[350149072,1737654638082,-2458.94043467,0.00014,2]
[350149073,1737654638092,-2458.94043467,0.00014,2]
[350149074,1737654638101,-439.17,0.00014019,2]
[350149075,1737654638111,-200.0,0.0001405,2]
[350149076,1737654638120,-250.0,0.00014107,2]
[350149077,1737654638129,-2306.89,0.00014114,2]
[350149078,1737654638139,-2458.94043467,0.00014141,2]
[350149079,1737654638150,-939.07,0.00014285,2]
[350149080,1737654638159,-2631.5,0.00014337,2]
[350149081,1737654638168,-228.84361575,0.00014337,2]
[350149082,1737654638361,-2080.68,0.00014352,2]
[350149083,1737654638371,-1297.15,0.00014352,2]
[350149084,1737654638380,-23900.0,0.00014352,2]
[350149085,1737654638389,-200.0,0.00014352,2]
[350149086,1737654638400,-397.51155829,0.000144,2]
[350149087,1737654638411,-2458.94043467,0.00014452,2]
[350149088,1737654638421,-233.18,0.00014454,2]
[350149089,1737654638430,-1260.37,0.00014525,2]
[350149090,1737654638440,-1000.0,0.00014525,2]
[350149091,1737654638449,-2399.96,0.00014545,2]
[350149092,1737654638461,-202.63,0.00014574,2]
[350149093,1737654638471,-1545.94,0.00014582,2]
[350149094,1737654638480,-176.58,0.00014658,2]
[350149095,1737654638489,-2458.94043467,0.00014762,2]
[350149096,1737654638498,-250.0,0.00014834,2]
[350149097,1737654638509,-1009.77,0.00014834,2]
[350149098,1737654638519,-4357.11664955,0.000149,2]
[350149099,1737654638529,-9619.0,0.00015,2]
[350149100,1737654638539,-550.0,0.00015,2]
[350149101,1737654638549,-2458.94043467,0.00015072,2]
[350149102,1737654638558,-438.64,0.00015082,2]
[350149103,1737654638568,-701.27,0.00015242,2]
[350149104,1737654638578,-225.0,0.00015315,2]
[350149105,1737654638587,-2458.94043467,0.00015383,2]
[350149106,1737654638596,-4357.11664952,0.00015395,2]
[350149107,1737654638605,-235.8,0.00015427,2]
[350149108,1737654638614,-726.6100862,0.00015466,2]
[350149109,1737654638624,-397.51155829,0.0001565,2]
[350149110,1737654638633,-2458.94043467,0.00015693,2]
[350149111,1737654638642,-439.17,0.00015771,2]
[350149112,1737654638652,-261.4067,0.00015795,2]
[350149113,1737654638661,-4357.11664952,0.00015889,2]
[350149114,1737654638671,-763.0,0.00015895,2]
[350149115,1737654638680,-1000.0,0.00015901,2]
[350149116,1737654638690,-2500.0,0.00015901,2]
[350149117,1737654638699,-500.0,0.00015904,2]
[350149118,1737654638709,-2458.94043467,0.00016003,2]
[350149119,1737654638719,-185.46,0.00016062,2]
[350149120,1737654638728,-150.0,0.00016064,2]
[350149121,1737654638737,-228.72,0.00016064,2]
[350149122,1737654638747,-298.01,0.00016064,2]
[350149123,1737654638756,-242.57,0.00016064,2]
[350149124,1737654638765,-150.0,0.00016064,2]
[350149125,1737654638775,-569.28,0.00016064,2]
[350149126,1737654638784,-150.0,0.00016064,2]
[350149127,1737654638794,-150.0,0.00016064,2]
[350149128,1737654638803,-150.0,0.00016064,2]
[350149129,1737654638812,-150.0,0.00016064,2]
[350149130,1737654638822,-150.0,0.00016064,2]
[350149131,1737654638832,-749.0,0.00016064,2]
[350149132,1737654638841,-279.76,0.00016064,2]
[350149133,1737654638851,-438.48,0.00016207,2]
[350149134,1737654638860,-1546.22,0.00016207,2]
[350149135,1737654638869,-438.64,0.00016207,2]
[350149136,1737654638879,-438.64,0.00016207,2]
[350149137,1737654638888,-438.64,0.00016207,2]
[350149138,1737654638900,-438.64,0.00016207,2]
[350149139,1737654638915,-438.64,0.00016207,2]
[350149140,1737654638924,-436.74,0.00016207,2]
[350149141,1737654638934,-6891.19371938,0.000163,4]
[350149142,1737654638951,-26440.36448289,0.000163,4]
[350149143,1737654638966,-4996.2671806,0.000163,4]
[350149144,1737654638975,-2458.94043467,0.00016314,2]
[350149145,1737654638984,-2034.69238473,0.00016338,2]
[350149146,1737654639038,-54.46204189,0.00016338,2]
[350149147,1737654639047,-1109.00224121,0.00016338,2]
[350149148,1737654639069,-3890.99775879,0.00016338,2]
[350149149,1737654639079,-1000.0,0.0001634,2]
[350149150,1737654639088,-4357.11664952,0.00016384,2]
[350149151,1737654639098,-1271.0,0.000164,2]
[350149152,1737654639107,-1202.88,0.00016428,2]
[350149153,1737654639116,-467.330235,0.00016438,2]
[350149154,1737654639126,-404.792073,0.00016438,2]
[350149155,1737654639136,-155.67239,0.00016438,2]
[350149156,1737654639146,-174.832348,0.00016438,2]
[350149157,1737654639155,-170.078334,0.00016438,2]
[350149158,1737654639165,-284.767302,0.00016438,2]
[350149159,1737654639174,-394.35038822,0.00016438,2]
[350149160,1737654639183,-500.0,0.00016438,2]
[350149161,1737654639192,-500.0,0.00016438,2]
[350149162,1737654639202,-500.0,0.00016438,2]
[350149163,1737654639211,-499.54219965,0.00016438,2]
[350149164,1737654639220,-503.97201189,0.00016438,2]
[350149165,1737654639229,-500.0,0.00016438,2]
[350149166,1737654639239,-507.57142184,0.00016438,2]
[350149167,1737654639248,-500.0,0.00016438,2]
[350149168,1737654639257,-539.65582775,0.00016438,2]
[350149169,1737654639267,-500.0,0.00016438,2]
[350149170,1737654639277,-500.0,0.00016438,2]
[350149171,1737654639286,-500.0,0.00016438,2]
[350149172,1737654639295,-500.0,0.00016438,2]
[350149173,1737654639305,-284.7673,0.00016438,2]
[350149174,1737654639315,-505.25334816,0.00016438,2]
[350149175,1737654639326,-507.04981917,0.00016438,2]
[350149176,1737654639337,-205.10301694,0.00016438,2]
[350149177,1737654639347,-500.0,0.00016438,2]
[350149178,1737654639357,-500.0,0.00016438,2]
[350149179,1737654639367,-500.0,0.00016438,2]
[350149180,1737654639376,-500.0,0.00016438,2]
[350149181,1737654639385,-500.0,0.00016438,2]
[350149182,1737654639397,-206.876049,0.00016438,2]
[350149183,1737654639407,-500.0,0.00016438,2]
[350149184,1737654639416,-500.0,0.00016438,2]
[350149185,1737654639426,-500.0,0.00016438,2]
[350149186,1737654639435,-500.0,0.00016438,2]
[350149187,1737654639445,-500.0,0.00016438,2]
[350149188,1737654639456,-500.0,0.00016438,2]
[350149189,1737654639466,-500.0,0.00016438,2]
[350149190,1737654639475,-500.0,0.00016438,2]
[350149191,1737654639486,-500.0,0.00016438,2]
[350149192,1737654639496,-500.0,0.00016438,2]
[350149193,1737654639506,-500.0,0.00016438,2]
[350149194,1737654639516,-500.0,0.00016438,2]
[350149195,1737654639526,-500.0,0.00016438,2]
[350149196,1737654639535,-500.0,0.00016438,2]
[350149197,1737654639545,-298.49027091,0.00016438,2]
[350149198,1737654639554,-500.0,0.00016438,2]
[350149199,1737654639564,-324.45087415,0.00016438,2]
[350149200,1737654639578,-175.54912585,0.00016438,2]
[350149201,1737654639587,-390.53941209,0.00016438,2]
[350149202,1737654639596,-500.0,0.00016438,2]
[350149203,1737654639606,-500.0,0.00016438,2]
[350149204,1737654639615,-500.0,0.00016438,2]
[350149205,1737654639624,-500.0,0.00016438,2]
[350149206,1737654639633,-500.0,0.00016438,2]
[350149207,1737654639643,-500.0,0.00016438,2]
[350149208,1737654639652,-500.0,0.00016438,2]
[350149209,1737654639661,-500.0,0.00016438,2]
[350149210,1737654639671,-500.0,0.00016438,2]
[350149211,1737654639679,-500.0,0.00016438,2]
[350149212,1737654639689,-500.0,0.00016438,2]
[350149213,1737654639698,-566.5209284,0.00016438,2]
[350149214,1737654639709,-500.0,0.00016438,2]
[350149216,1737654639719,-500.0,0.00016438,2]
[350149218,1737654639729,-500.0,0.00016438,2]
[350149220,1737654639738,-500.0,0.00016438,2]
[350149222,1737654639747,-500.0,0.00016438,2]
[350149224,1737654639757,-500.0,0.00016438,2]
[350149226,1737654639766,-500.0,0.00016438,2]
[350149228,1737654639776,-500.0,0.00016438,2]
[350149230,1737654639786,-500.0,0.00016438,2]
[350149232,1737654639795,-500.0,0.00016438,2]
[350149234,1737654639805,-500.0,0.00016438,2]
[350149236,1737654639815,-524.17835608,0.00016438,2]
[350149238,1737654639825,-500.0,0.00016438,2]
[350149239,1737654639834,-500.0,0.00016438,2]
[350149240,1737654639844,-514.06866692,0.00016438,2]
[350149241,1737654639854,-500.0,0.00016438,2]
[350149242,1737654639863,-500.0,0.00016438,2]
[350149243,1737654639873,-500.0,0.00016438,2]
[350149244,1737654639882,-500.0,0.00016438,2]
[350149245,1737654639892,-500.0,0.00016438,2]
[350149246,1737654639902,-544.01,0.00016438,2]
[350149247,1737654639914,-500.0,0.00016438,2]
[350149248,1737654639923,-500.0,0.00016438,2]
[350149249,1737654639935,-500.0,0.00016438,2]
[350149250,1737654639946,-500.0,0.00016438,2]
[350149251,1737654639956,-500.0,0.00016438,2]
[350149252,1737654639967,-500.0,0.00016438,2]
[350149253,1737654639977,-500.0,0.00016438,2]
[350149254,1737654639987,-500.0,0.00016438,2]
[350149255,1737654639996,-500.0,0.00016438,2]
[350149256,1737654640006,-500.0,0.00016438,2]
[350149257,1737654640015,-500.0,0.00016438,2]
[350149258,1737654640025,-500.0,0.00016438,2]
[350149259,1737654640036,-500.0,0.00016438,2]
[350149260,1737654640046,-500.0,0.00016438,2]
[350149261,1737654640056,-531.04490341,0.00016438,2]
[350149262,1737654640066,-500.0,0.00016438,2]
[350149263,1737654640076,-500.0,0.00016438,2]
[350149264,1737654640085,-500.0,0.00016438,2]
[350149265,1737654640095,-500.0,0.00016438,2]
[350149266,1737654640104,-500.0,0.00016438,2]
[350149267,1737654640114,-500.0,0.00016438,2]
[350149268,1737654640124,-500.0,0.00016438,2]
[350149269,1737654640133,-500.0,0.00016438,2]
[350149270,1737654640142,-480.7750498,0.00016438,2]
[350149271,1737654640151,-500.0,0.00016438,2]
[350149272,1737654640161,-500.0,0.00016438,2]
[350149273,1737654640170,-648.15,0.00016438,2]
[350149274,1737654640180,-500.0,0.00016438,2]
[350149275,1737654640190,-500.0,0.00016438,2]
[350149276,1737654640200,-500.0,0.00016438,2]
[350149277,1737654640210,-500.0,0.00016438,2]
[350149278,1737654640220,-509.5065087,0.00016438,2]
[350149279,1737654640229,-500.0,0.00016438,2]
[350149280,1737654640238,-500.0,0.00016438,2]
[350149281,1737654640249,-500.0,0.00016438,2]
[350149282,1737654640258,-500.0,0.00016438,2]
[350149283,1737654640268,-500.0,0.00016438,2]
[350149284,1737654640278,-500.0,0.00016438,2]
[350149285,1737654640287,-500.0,0.00016438,2]
[350149286,1737654640296,-500.0,0.00016438,2]
[350149287,1737654640306,-500.0,0.00016438,2]
[350149288,1737654640316,-500.0,0.00016438,2]
[350149289,1737654640326,-500.0,0.00016438,2]
[350149290,1737654640335,-500.0,0.00016438,2]
[350149291,1737654640345,-500.0,0.00016438,2]
[350149292,1737654640356,-500.0,0.00016438,2]
[350149293,1737654640366,-500.0,0.00016438,2]
[350149294,1737654640375,-500.0,0.00016438,2]
[350149295,1737654640384,-500.0,0.00016438,2]
[350149296,1737654640394,-500.0,0.00016438,2]
[350149297,1737654640403,-500.0,0.00016438,2]
[350149298,1737654640412,-500.0,0.00016438,2]
[350149299,1737654640422,-500.0,0.00016438,2]
[350149301,1737654640433,-323.97680386,0.00016438,2]
[350149303,1737654640443,-500.0,0.00016438,2]
[350149305,1737654640451,-500.0,0.00016438,2]
[350149307,1737654640464,-500.0,0.00016438,2]
[350149309,1737654640474,-500.0,0.00016438,2]
[350149311,1737654640483,-500.0,0.00016438,2]
[350149313,1737654640493,-500.0,0.00016438,2]
[350149316,1737654640502,-500.0,0.00016438,2]
[350149317,1737654640511,-500.0,0.00016438,2]
[350149319,1737654640521,-500.0,0.00016438,2]
[350149321,1737654640531,-500.0,0.00016438,2]
[350149323,1737654640540,-500.0,0.00016438,2]
[350149325,1737654640549,-500.0,0.00016438,2]
[350149326,1737654640559,-500.0,0.00016438,2]
[350149327,1737654640568,-500.0,0.00016438,2]
[350149328,1737654640577,-500.0,0.00016438,2]
[350149329,1737654640586,-500.0,0.00016438,2]
[350149330,1737654640597,-500.0,0.00016438,2]
[350149331,1737654640607,-500.0,0.00016438,2]
[350149332,1737654640617,-500.0,0.00016438,2]
[350149333,1737654640626,-279.56579104,0.00016438,2]
[350149334,1737654640636,-500.0,0.00016438,2]
[350149335,1737654640645,-500.0,0.00016438,2]
[350149336,1737654640657,-500.0,0.00016438,2]
[350149337,1737654640667,-500.0,0.00016438,2]
[350149338,1737654640676,-500.0,0.00016438,2]
[350149339,1737654640685,-500.0,0.00016438,2]
[350149340,1737654640695,-211.920639,0.00016438,2]
[350149341,1737654640704,-500.0,0.00016438,2]
[350149342,1737654640720,-500.0,0.00016438,2]
[350149343,1737654640729,-500.0,0.00016438,2]
[350149344,1737654640740,-500.0,0.00016438,2]